fUST/lending_fUST_20240116
["ID","MTS","AMOUNT","RATE_DAILY","PERIOD"]
[311793172,1705396233945,-4044.33,0.00027397,3]
[311793173,1705396233954,-4459.59,0.00027397,3]
[311793174,1705396233964,-500.0,0.00027534,2]
[311793175,1705396233973,-500.0,0.00027671,2]
[311793176,1705396233982,-500.0,0.00027808,2]
[311793177,1705396233991,-298.97508183,0.00027945,3]
[311793178,1705396234001,-500.0,0.00027945,2]
[311793179,1705396234009,-290.8368046,0.00027948,2]
[311793180,1705396234019,-2013.09023026,0.0002798,3]
[311793181,1705396234029,-5000.0,0.0002798,5]
[311793182,1705396234040,-93879.09870247,0.0002798,5]
[311793183,1705396234048,-5000.0,0.0002798,5]
[311793184,1705396234057,-50000.0,0.0002798,5]
[311793185,1705396234066,-63788.74745857,0.0002798,5]
[311793186,1705396234075,-29592.44148813,0.0002798,5]
[311793187,1705396234083,-200.0,0.00028063,15]
[311793188,1705396234093,-348.0,0.00028063,15]
[311793189,1705396234101,-500.0,0.00028082,2]
[311793190,1705396234110,-624.09736244,0.0002816,2]
[311793191,1705396234120,-500.0,0.00028219,2]
[311793192,1705396234128,-500.0,0.00028356,2]
[311793193,1705396234137,-500.0,0.00028493,2]
[311793194,1705396234146,-274.42712104,0.000285,2]
[311793195,1705396234155,-500.0,0.0002863,2]
[311793196,1705396234164,-155.0,0.00028767,2]
[311793197,1705396234173,-500.0,0.00028767,2]
[311793198,1705396234183,-500.0,0.00028904,2]
[311793199,1705396234193,-151.0,0.00028951,2]
[311793200,1705396234202,-2454.74382412,0.00029,2]
[311793201,1705396234212,-155.77486132,0.00029,2]
[311793202,1705396234221,-5499.99999303,0.00029,2]
[311793203,1705396234231,-500.0,0.00029041,2]
[311793204,1705396234239,-342.48819433,0.00029178,2]
[311793205,1705396234248,-170.82124155,0.00029474,2]
[311793206,1705396234257,-620.20486812,0.00029568,2]
[311793207,1705396234266,-415.27970346,0.00029699,2]
[311793208,1705396234275,-154.04375427,0.00029731,2]
[311793209,1705396234287,-1451.97,0.00029799,2]
[311793210,1705396234295,-1451.97,0.00029799,2]
[311793211,1705396234304,-1451.97,0.00029799,2]
[311793212,1705396234314,-1451.97,0.00029799,2]
[311793213,1705396234323,-1451.97,0.00029799,2]
[311793214,1705396234331,-1451.97,0.00029799,2]
[311793215,1705396234340,-1451.97,0.00029799,2]
[311793216,1705396234350,-1451.97,0.00029799,2]
[311793217,1705396234360,-1451.97,0.00029799,2]
[311793218,1705396234370,-1451.97,0.00029799,2]
[311793219,1705396234380,-121106.91314408,0.000298,2]
[311793220,1705396234389,-161.7286158,0.00029819,2]
[311793221,1705396234401,-170.82124156,0.00029897,2]
[311793222,1705396234411,-437.88030551,0.000299,2]
[311793223,1705396234420,-151.0,0.00029924,2]
[311793224,1705396234429,-155.54348137,0.00029997,2]
[311793225,1705396234438,-676.95397771,0.00029997,2]
[311793226,1705396234448,-500.0,0.00029999,2]
[311793227,1705396234457,-500.0,0.00029999,2]
[311793228,1705396234466,-364.89983319,0.00029999,2]
[311793229,1705396234475,-500.0,0.00029999,2]
[311793230,1705396234484,-500.0,0.00029999,2]
[311793231,1705396234493,-500.0,0.00029999,2]
[311793232,1705396234502,-566.60978182,0.00029999,2]
[311793233,1705396234512,-315.90806164,0.00029999,2]
[311793234,1705396234521,-500.0,0.00029999,2]
[311793235,1705396234531,-500.0,0.00029999,2]
[311793236,1705396234541,-500.0,0.00029999,2]
[311793237,1705396234550,-500.0,0.00029999,2]
[311793238,1705396234559,-500.0,0.00029999,2]
[311793239,1705396234568,-211.54045796,0.00029999,2]
[311793240,1705396234578,-645.4199956,0.00029999,2]
[311793241,1705396234586,-500.0,0.00029999,2]
[311793242,1705396234596,-500.0,0.00029999,2]
[311793243,1705396234605,-166.18160504,0.00029999,2]
[311793244,1705396234614,-500.0,0.00029999,2]
[311793245,1705396234623,-500.0,0.00029999,2]
[311793246,1705396234632,-500.0,0.00029999,2]
[311793247,1705396234642,-500.0,0.00029999,2]
[311793248,1705396234651,-500.0,0.00029999,2]
[311793249,1705396234659,-500.0,0.00029999,2]
[311793250,1705396234669,-500.0,0.00029999,2]
[311793251,1705396234677,-500.0,0.00029999,2]
[311793252,1705396234687,-500.0,0.00029999,2]
[311793253,1705396234695,-500.0,0.00029999,2]
[311793254,1705396234704,-585.52790496,0.00029999,2]
[311793255,1705396234713,-500.0,0.00029999,2]
[311793256,1705396234722,-500.0,0.00029999,2]
[311793257,1705396234731,-500.0,0.00029999,2]
[311793258,1705396234740,-500.0,0.00029999,2]
[311793259,1705396234749,-500.0,0.00029999,2]
[311793260,1705396234758,-500.0,0.00029999,2]
[311793261,1705396234834,-500.0,0.00029999,2]
[311793262,1705396234855,-500.0,0.00029999,2]
[311793263,1705396234865,-500.0,0.00029999,2]
[311793264,1705396234875,-500.0,0.00029999,2]
[311793265,1705396234885,-500.0,0.00029999,2]
[311793266,1705396234895,-500.0,0.00029999,2]
[311793267,1705396234904,-500.0,0.00029999,2]
[311793268,1705396234914,-500.0,0.00029999,2]
[311793269,1705396234924,-500.0,0.00029999,2]
[311793270,1705396234932,-500.0,0.00029999,2]
[311793271,1705396234942,-500.0,0.00029999,2]
[311793272,1705396234951,-500.0,0.00029999,2]
[311793273,1705396234960,-500.0,0.00029999,2]
[311793274,1705396234970,-463.10901278,0.00029999,2]
[311793275,1705396234980,-500.0,0.00029999,2]
[311793276,1705396234989,-500.0,0.00029999,2]
[311793277,1705396234998,-499.99999999,0.00029999,2]
[311793278,1705396235007,-500.0,0.00029999,2]
[311793279,1705396235017,-500.0,0.00029999,2]
[311793280,1705396235026,-500.0,0.00029999,2]
[311793281,1705396235036,-500.0,0.00029999,2]
[311793282,1705396235046,-500.0,0.00029999,2]
[311793283,1705396235055,-500.0,0.00029999,2]
[311793284,1705396235065,-500.0,0.00029999,2]
[311793285,1705396235074,-500.0,0.00029999,2]
[311793286,1705396235084,-500.0,0.00029999,2]
[311793287,1705396235093,-500.0,0.00029999,2]
[311793288,1705396235102,-500.0,0.00029999,2]
[311793289,1705396235111,-500.0,0.00029999,2]
[311793290,1705396235120,-500.0,0.00029999,2]
[311793291,1705396235130,-500.0,0.00029999,2]
[311793292,1705396235139,-500.0,0.00029999,2]
[311793293,1705396235149,-500.0,0.00029999,2]
[311793294,1705396235158,-500.0,0.00029999,2]
[311793295,1705396235168,-500.0,0.00029999,2]
[311793296,1705396235177,-163.10901278,0.00029999,2]
[311793297,1705396235186,-500.0,0.00029999,2]
[311793298,1705396235195,-500.0,0.00029999,2]
[311793299,1705396235204,-500.0,0.00029999,2]
[311793300,1705396235213,-500.0,0.00029999,2]
[311793301,1705396235222,-500.0,0.00029999,2]
[311793302,1705396235232,-500.0,0.00029999,2]
[311793303,1705396235241,-500.0,0.00029999,2]
[311793304,1705396235250,-500.0,0.00029999,2]
[311793305,1705396235260,-500.0,0.00029999,2]
[311793306,1705396235269,-500.0,0.00029999,2]
[311793307,1705396235279,-500.0,0.00029999,2]
[311793308,1705396235288,-500.0,0.00029999,2]
[311793309,1705396235298,-500.0,0.00029999,2]
[311793310,1705396235307,-502.00773122,0.00029999,2]
[311793311,1705396235316,-500.0,0.00029999,2]
[311793312,1705396235325,-500.0,0.00029999,2]
[311793313,1705396235335,-500.0,0.00029999,2]
[311793314,1705396235344,-500.0,0.00029999,2]
[311793315,1705396235353,-930.69756911,0.00029999,2]
[311793316,1705396235362,-930.69756911,0.00029999,2]
[311793317,1705396235371,-930.69756911,0.00029999,2]
[311793318,1705396235380,-930.69756911,0.00029999,2]
[311793319,1705396235389,-930.69756911,0.00029999,2]
[311793320,1705396235398,-930.69756911,0.00029999,2]
[311793321,1705396235406,-681.93949513,0.0003,3]
[311793322,1705396235415,-155.0,0.0003,2]
[311793323,1705396235424,-12267.76203625,0.0003,2]
[311793324,1705396235434,-203040.01406424,0.0003,2]
[311793325,1705396235443,-34095.98656636,0.0003,3]
[311793326,1705396235452,-640.52310595,0.0003,4]
[311793327,1705396235461,-297.88447958,0.0003,4]
[311793328,1705396235470,-157.58234581,0.0003,4]
[311793329,1705396235479,-687.578808,0.0003,4]
[311793330,1705396235488,-3758.34471,0.0003,2]
[311793331,1705396235498,-20774.94157507,0.0003,4]
[311793332,1705396235507,-155.77495357,0.0003,4]
[311793333,1705396235515,-200.30831708,0.0003,4]
[311793334,1705396235524,-438.6008308,0.0003,5]
[311793335,1705396235537,-2000.0,0.0003,2]
[311793336,1705396235548,-862.086052,0.0003,2]
[311793337,1705396235557,-862.086052,0.0003,2]
[311793338,1705396235566,-151.0,0.0003,2]
[311793339,1705396235575,-225.0,0.0003,2]
[311793340,1705396235584,-2000.0,0.0003001,2]
[311793341,1705396235593,-2000.0,0.0003002,2]
[311793342,1705396235602,-2000.0,0.0003003,2]
[311793343,1705396235612,-2000.0,0.0003004,2]
[311793344,1705396235621,-2000.0,0.0003005,2]
[311793345,1705396235630,-2000.0,0.0003006,2]
[311793346,1705396235639,-2000.0,0.0003007,2]
[311793347,1705396235648,-2000.0,0.0003008,2]
[311793348,1705396235657,-2000.0,0.0003009,2]
[311793349,1705396235666,-3555.756626,0.000301,2]
[311793350,1705396235675,-504.499014,0.000301,14]
[311793351,1705396235684,-306.2703506,0.00030137,2]
[311793352,1705396235694,-306.2535945,0.00030137,2]
[311793353,1705396235703,-153.0,0.00030137,2]
[311793354,1705396235712,-153.0,0.00030137,2]
[311793355,1705396235721,-153.0,0.00030137,2]
[311793356,1705396235731,-153.0,0.00030137,2]
[311793357,1705396235740,-198.9082381,0.00030137,2]
[311793358,1705396235749,-153.0,0.00030137,2]
[311793359,1705396235759,-153.0,0.00030137,2]
[311793360,1705396235768,-198.9082381,0.00030137,2]
[311793361,1705396235777,-198.9082381,0.00030137,2]
[311793362,1705396235786,-198.9082381,0.00030137,2]
[311793363,1705396235796,-198.9082381,0.00030137,2]
[311793364,1705396235806,-198.9082381,0.00030137,2]
[311793365,1705396235814,-198.9082381,0.00030137,2]
[311793366,1705396235824,-198.9082381,0.00030137,2]
[311793367,1705396235834,-198.9082381,0.00030137,2]
[311793368,1705396235843,-198.9082381,0.00030137,2]
[311793369,1705396235853,-198.9082381,0.00030137,2]
[311793370,1705396235862,-198.9082381,0.00030137,2]
[311793371,1705396235871,-198.9082381,0.00030137,2]
[311793372,1705396235881,-198.9082381,0.00030137,2]
[311793373,1705396235890,-198.9082381,0.00030137,2]
[311793374,1705396235900,-198.9082381,0.00030137,2]
[311793375,1705396235909,-198.9082381,0.00030137,2]
[311793376,1705396235919,-198.9082381,0.00030137,2]
[311793377,1705396235928,-198.9082381,0.00030137,2]
[311793378,1705396235938,-198.9082381,0.00030137,2]
[311793379,1705396235947,-198.9082381,0.00030137,2]
[311793380,1705396235956,-198.9082381,0.00030137,2]
[311793381,1705396235966,-198.9082381,0.00030137,2]
[311793382,1705396235975,-198.9082381,0.00030137,2]
[311793383,1705396235984,-198.9082381,0.00030137,2]
[311793384,1705396235994,-198.9082381,0.00030137,2]
[311793385,1705396236003,-198.9082381,0.00030137,2]
[311793386,1705396236012,-198.9082381,0.00030137,2]
[311793387,1705396236022,-198.9082381,0.00030137,2]
[311793388,1705396236031,-198.9082381,0.00030137,2]
[311793389,1705396236041,-198.9082381,0.00030137,2]
[311793390,1705396236051,-155.0,0.00030137,2]
[311793391,1705396236061,-161.7286158,0.00030214,7]
[311793392,1705396236071,-161.7286158,0.00030274,7]
[311793393,1705396236080,-12240.22652077,0.000304,5]
[311793394,1705396236090,-409.0,0.000306,2]
[311793395,1705396236100,-10522.0,0.0003077,30]
[311793396,1705396236109,-10522.0,0.0003078,30]
[311793397,1705396236119,-10522.0,0.0003079,30]
[311793398,1705396236129,-5999.99,0.000308,2]
[311793399,1705396236139,-5999.99,0.000308,2]
[311793400,1705396236149,-151.0,0.000308,2]
[311793401,1705396236158,-165.95053937,0.00030821,7]
[311793402,1705396236168,-200.0,0.00030869,15]
[311793403,1705396236177,-200.0,0.00030869,15]
[311793404,1705396236187,-368.0,0.00030869,15]
[311793405,1705396236196,-154.04375427,0.00030874,7]
[311793406,1705396236206,-151.0,0.00030896,2]
[311793407,1705396236215,-154.04375427,0.00030921,7]
[311793408,1705396236224,-21478.04621764,0.00031,4]
[311793409,1705396236269,-4363.15322678,0.00031,4]
[311793410,1705396236282,-71126.44870833,0.00031,4]
[311793411,1705396236292,-46952.21255345,0.00031,2]
[311793412,1705396236304,-570.70291292,0.00031,2]
[311793442,1705396238880,-3667.75962385,0.00031,2]
[311793444,1705396238891,-329.80963615,0.00031,31]
[311793446,1705396238903,-670.19036385,0.00031,31]
[311793448,1705396238912,-521.70444796,0.00031,2]
[311793451,1705396238924,-340.38160404,0.00031,2]
[311793452,1705396238933,-862.086052,0.00031,2]
[311793455,1705396238943,-151.0,0.00031,2]
[311793457,1705396238953,-620.01024341,0.00031046,2]
[311793459,1705396238962,-349.27568372,0.00031158,2]
[311793460,1705396238970,-3823.37894203,0.00031197,2]
[311793463,1705396238981,-1219.10146173,0.00031197,2]
[311793464,1705396238990,-169.47161526,0.00031197,2]
[311793467,1705396239001,-219.57124968,0.00031197,2]
[311793469,1705396239010,-863.57,0.00031329,2]
[311793471,1705396239019,-155.0,0.00031507,2]
[311793473,1705396239029,-161.7286158,0.00031673,7]
[311793475,1705396239039,-154.04375427,0.00031796,7]
[311793476,1705396239048,-151.0,0.00031869,2]
[311793478,1705396239057,-154.04375427,0.00031955,7]
[311793480,1705396239067,-2808.94906759,0.00031996,4]
[311793482,1705396239076,-465.24992729,0.00031996,4]
[311793484,1705396239086,-60.33802891,0.00031997,4]
[311793487,1705396239098,-10451.76561592,0.00031997,4]
[311793489,1705396239107,-167.89275327,0.00031998,4]
[311793491,1705396239116,-155.48434958,0.00031998,4]
[311793493,1705396239126,-215.78415089,0.00031998,4]
[311793495,1705396239135,-250.8034724,0.00031998,4]
[311793497,1705396239144,-304.4646857,0.00031998,4]
[311793498,1705396239153,-155.15668265,0.00031998,2]
[311793501,1705396239163,-155.13230412,0.00031998,4]
[311793502,1705396239172,-301.9903126,0.00031998,4]
[311793504,1705396239182,-2545.23233227,0.00031998,4]
[311793506,1705396239191,-155.01395126,0.00031998,2]
[311793509,1705396239201,-155.2341359,0.00031998,4]
[311793510,1705396239210,-176.63785713,0.00031998,4]
[311793512,1705396239219,-250.01380592,0.00031998,4]
[311793514,1705396239229,-323.27217089,0.00031998,4]
[311793516,1705396239238,-4136.96980501,0.00031998,2]
[311793518,1705396239247,-1647.46294033,0.00031998,4]
[311793520,1705396239257,-222.15590729,0.00031998,4]
[311793522,1705396239266,-155.13845381,0.00031998,4]
[311793524,1705396239275,-637.26620041,0.00031998,4]
[311793526,1705396239285,-155.77024715,0.00031998,4]
[311793528,1705396239294,-162.61777734,0.00031998,4]
[311793530,1705396239303,-1424.32228167,0.00031998,120]
[311793532,1705396239313,-250.90128938,0.00031998,4]
[311793534,1705396239322,-155.18012841,0.00031998,4]
[311793536,1705396239332,-155.14300858,0.00031998,4]
[311793538,1705396239343,-5661.05566295,0.00031998,2]
[311793540,1705396239352,-155.18974638,0.00031998,4]
[311793542,1705396239362,-246.01715281,0.00031998,4]
[311793544,1705396239371,-264.87381963,0.00031998,4]
[311793546,1705396239380,-155.01395126,0.00031998,4]
[311793548,1705396239389,-155.01395126,0.00031998,4]
[311793550,1705396239398,-151.0,0.00031998,2]
[311793552,1705396239408,-151.368128,0.00031998,2]
[311793554,1705396239417,-487.21595598,0.00031999,4]
[311793556,1705396239426,-609.27826206,0.00031999,4]
[311793558,1705396239435,-500.0,0.00031999,4]
[311793560,1705396239445,-500.0,0.00031999,4]
[311793562,1705396239454,-500.0,0.00031999,4]
[311793564,1705396239463,-500.0,0.00031999,4]
[311793566,1705396239472,-500.0,0.00031999,4]
[311793568,1705396239481,-345.11460587,0.00031999,4]
[311793570,1705396239490,-526.90794115,0.00031999,4]
[311793572,1705396239499,-449.0134094,0.00031999,4]
[311793574,1705396239508,-500.0,0.00031999,4]
[311793576,1705396239518,-500.0,0.00031999,4]
[311793579,1705396239530,-500.0,0.00031999,4]
[311793580,1705396239541,-500.0,0.00031999,4]
[311793583,1705396239551,-500.0,0.00031999,4]
[311793585,1705396239560,-500.0,0.00031999,4]
[311793587,1705396239569,-281538.26498963,0.00032,15]
[311793589,1705396239579,-1500.0,0.00032,10]
[311793590,1705396239589,-44833.99177716,0.00032,10]
[311793593,1705396239599,-195.57320503,0.00032,4]
[311793595,1705396239608,-410.24944644,0.00032,2]
[311793596,1705396239617,-1150.65166067,0.00032,2]
[311793598,1705396239627,-155.0,0.00032,2]
[311793600,1705396239636,-404.80569285,0.00032,3]
[311793602,1705396239645,-351.009366,0.00032,4]
[311793604,1705396239655,-4457.5026249,0.00032,4]
[311793606,1705396239665,-242068.62194402,0.00032,15]
[311793608,1705396239673,-151.0,0.00032,2]
[311793610,1705396239683,-152.042525,0.00032,2]
[311793612,1705396239692,-752.5766124,0.00032,4]
[311793614,1705396239702,-156.52857959,0.00032,4]
[311793616,1705396239711,-507.592211,0.00032,3]
[311793618,1705396239721,-862.086052,0.00032,2]
[311793620,1705396239731,-862.086052,0.00032,2]
[311793622,1705396239741,-862.086052,0.00032,2]
[311793624,1705396239750,-862.086052,0.00032,2]
[311793626,1705396239760,-200.716075,0.00032,4]
[311793628,1705396239770,-151.0,0.00032,2]
[311793630,1705396239780,-151.0,0.00032,2]
[311793632,1705396239794,-620.20433055,0.00032009,2]
[311793634,1705396239804,-161.7286158,0.0003205,7]
[311793636,1705396239814,-150.0,0.00032122,2]
[311793638,1705396239823,-150.0,0.00032122,2]
[311793640,1705396239832,-165.95053937,0.00032261,7]
[311793642,1705396239841,-162.69671502,0.00032324,2]
[311793644,1705396239851,-161.7286158,0.00032355,7]
[311793646,1705396239861,-10522.0,0.0003237,30]
[311793648,1705396239871,-10522.0,0.0003238,30]
[311793650,1705396239881,-10522.0,0.0003238,30]
[311793652,1705396239890,-10522.0,0.0003239,30]
[311793654,1705396239899,-10522.0,0.0003239,30]
[311793656,1705396239909,-161.7286158,0.00032461,7]
[311793658,1705396239918,-1246033.16444795,0.000325,20]
[311793661,1705396239931,-3580.72887747,0.000325,20]
[311793712,1705396243704,-721.80899338,0.0002798,5]
[311793713,1705396243716,-4278.19100662,0.0002798,5]
[311793714,1705396243725,-135.8928537,0.00030987,2]
[311793715,1705396243880,-364.1071463,0.00030987,2]
[311793716,1705396243890,-500.0,0.00030987,2]
[311793717,1705396243900,-500.0,0.00030987,2]
[311793718,1705396243909,-280.66278585,0.00030987,2]
[311793719,1705396243921,-219.33721415,0.00030987,2]
[311793720,1705396243930,-236.93104623,0.00030987,2]
[311793721,1705396243939,-396.62684727,0.00030987,2]
[311793722,1705396243949,-187.25199736,0.00030987,2]
[311793723,1705396243958,-500.0,0.00030987,2]
[311793724,1705396243968,-114.87244346,0.00030987,2]
[311793733,1705396247311,-154.98450155,0.00030986,4]
[311793734,1705396247321,-200.29041192,0.00030986,4]
[311793735,1705396247331,-301.45322004,0.00030986,4]
[311793736,1705396247340,-2730.49500362,0.00030986,4]
[311793737,1705396247351,-1737.56511103,0.00030986,4]
[311793738,1705396247362,-351.45468007,0.00030987,2]
[311793739,1705396247372,-500.0,0.00030987,2]
[311793740,1705396247383,-500.0,0.00030987,2]
[311793741,1705396247392,-27.31574046,0.00030987,2]
[311793742,1705396247405,-472.68425954,0.00030987,2]
[311793743,1705396247415,-300.43774046,0.00030987,2]
[311793744,1705396247427,-199.56225954,0.00030987,2]
[311793745,1705396247436,-500.0,0.00030987,2]
[311793746,1705396247445,-500.0,0.00030987,2]
[311793747,1705396247455,-136.36252546,0.00030987,2]
[311793748,1705396247470,-343.99899979,0.00030987,2]
[311793754,1705396379891,-154.98450155,0.000235,2]
[311793755,1705396379917,-154.98450155,0.0002649,4]
[311793756,1705396379939,-166.80011479,0.00028452,2]
[311793757,1705396379961,-3741.87136759,0.00028452,2]
[311793758,1705396379981,-154.98450155,0.00028452,2]
[311793759,1705396380002,-2130.37501297,0.00028453,2]
[311793770,1705396769509,200.0,0.00023056,7]
[311793772,1705396841780,-7951.66166768,0.00018849,2]
[311793773,1705396841801,-154.98450155,0.00018849,2]
[311793774,1705396841823,-1031.74114823,0.00018849,2]
[311793775,1705396841844,-1739.01951288,0.00018849,2]
[311793776,1705396841867,-1222.43070975,0.00018849,2]
[311793777,1705396841889,-262.04802142,0.00018849,2]
[311793778,1705396841909,-18884.79760458,0.00018849,2]
[311793779,1705396841932,-400.44492458,0.0001885,2]
[311793780,1705396841954,-154.98450155,0.0001885,2]
[311793781,1705396841975,-861.6446352,0.0001885,2]
[311793782,1705396841995,-154.98450155,0.0001885,2]
[311793783,1705396842016,-1577.62749715,0.0001885,2]
[311793784,1705396842038,-616.12530775,0.0001885,2]
[311793785,1705396842062,-191.21026172,0.00018851,2]
[311793786,1705396842084,-286.06712723,0.00018851,2]
[311793787,1705396842108,-2711.18525978,0.00018851,2]
[311793788,1705396842129,-36924.85068782,0.00018851,2]
[311793789,1705396842149,-526.17799726,0.00018852,2]
[311793790,1705396842170,-521.56474162,0.00018852,2]
[311793791,1705396842191,-875.47285714,0.00018852,2]
[311793792,1705396842213,-166.80011479,0.00018852,2]
[311793793,1705396842235,-159.87666002,0.00018853,2]
[311793794,1705396842341,-1935.52,0.00019945,3]
[311793795,1705396842365,-3416.74,0.00019945,3]
[311793796,1705396842386,-2847.29,0.00019945,3]
[311793797,1705396842407,-155.33021401,0.00019953,2]
[311793798,1705396842429,-39536.71383915,0.00019953,2]
[311793799,1705396842450,-155.26235345,0.00019953,2]
[311793800,1705396842471,-4455.45835041,0.00019953,2]
[311793801,1705396842493,-7995.1019034,0.00019954,2]
[311793802,1705396842514,-81129.55401684,0.00019955,2]
[311793803,1705396842535,-587.69337227,0.00019955,2]
[311793804,1705396842558,-1695.03946883,0.00019955,2]
[311793805,1705396842584,-5178.14619186,0.00019955,2]
[311793806,1705396842606,-7910.45004853,0.00019955,2]
[311793810,1705396928446,-213.18676181,0.00018837,2]
[311793811,1705396928467,-582.81323819,0.00018837,2]
[311793812,1705396935356,24900.0,0.00017842,2]
[311793813,1705396951579,-154.98450155,0.00018736,2]
[311793814,1705396951607,-167.28879178,0.00018737,2]
[311793815,1705396951705,-6.57700599,0.00018737,2]
[311793816,1705396955392,-322.5995703,0.00018736,2]
[311793817,1705396955611,-6.5836647,0.00018736,2]
[311793818,1705396960550,2272.5257859,0.00017838,2]
[311793820,1705396994523,-164.93109546,0.0001873,2]
[311793821,1705396994547,-253.82439799,0.00018827,2]
[311793822,1705396994570,-2598.24450655,0.00018828,2]
[311793825,1705397132729,-154.98450155,0.00018711,2]
[311793826,1705397132765,-167.28879175,0.00018712,2]
[311793827,1705397132805,-6.57700599,0.00018712,2]
[311793828,1705397138529,-394.94496671,0.00018711,2]
[311793829,1705397138805,-8.06010136,0.00018711,2]
[311793830,1705397212890,-266.81734537,0.00018797,2]
[311793831,1705397213078,-5.44525195,0.00018797,2]
[311793832,1705397213104,-175.0415776,0.00018797,2]
[311793833,1705397213131,-1380.58447264,0.00018797,2]
[311793834,1705397213157,-154.98450155,0.00018797,2]
[311793835,1705397213194,75.27507087,0.00018797,2]
[311793836,1705397213240,-186.77295055,0.00018797,2]
[311793837,1705397213266,-154.98450155,0.00018797,2]
[311793838,1705397213299,875.47285714,0.00018797,2]
[311793839,1705397213758,242.84740802,0.00018797,2]
[311793840,1705397214057,154.98450155,0.00018797,2]
[311793841,1705397215598,1031.74114823,0.00018797,2]
[311793842,1705397215976,161.14455483,0.00018797,2]
[311793843,1705397216002,1192.88570306,0.00018797,2]
[311793844,1705397216494,-377.28946989,0.00018797,2]
[311793845,1705397216778,-7.6997851,0.00018797,2]
[311793846,1705397216805,-156.78271178,0.00018797,2]
[311793847,1705397217159,212.80697301,0.00018797,2]
[311793848,1705397217537,-648.83766219,0.00018797,2]
[311793849,1705397218918,195.57408031,0.00018797,2]
[311793850,1705397218945,133.60915469,0.00018797,2]
[311793851,1705397220233,502.25175426,0.00018797,2]
[311793852,1705397220371,635.86090895,0.00018797,2]
[311793853,1705397220400,84.31804654,0.00018797,2]
[311793854,1705397220867,154.98450155,0.00018797,2]
[311793855,1705397221113,587.69337227,0.00018796,2]
[311793856,1705397223783,-12000.0,0.00018797,2]
[311793857,1705397223879,-1706.10600457,0.00018797,2]
[311793858,1705397227289,-603.8028016,0.00018797,2]
[311793859,1705397227421,-12.32250615,0.00018797,2]
[311793860,1705397228042,591.48029545,0.00018796,2]
[311793861,1705397228068,603.8028016,0.00018796,2]
[311793862,1705397228402,-12000.0,0.00018796,2]
[311793863,1705397228590,-2009.12862953,0.00018796,2]
[311793864,1705397232801,-160.83818793,0.00018797,2]
[311793865,1705397232830,-252.41402374,0.00018797,2]
[311793866,1705397232917,-8.43371861,0.00018797,2]
[311793867,1705397232944,-404.81849306,0.00018797,2]
[311793868,1705397233014,-847.19290496,0.00018797,2]
[311793869,1705397233041,-793.03047677,0.00018797,2]
[311793870,1705397233142,-1198.44442091,0.00018797,2]
[311793871,1705397234478,441.77896082,0.00018797,2]
[311793872,1705397234505,1235.2362143,0.00018797,2]
[311793873,1705397234531,1235.2362143,0.00018797,2]
[311793874,1705397234557,1174.47553249,0.00018797,2]
[311793875,1705397234787,-12000.0,0.00018797,2]
[311793876,1705397234892,-12000.0,0.00018797,2]
[311793877,1705397235053,-329.183235,0.00018796,2]
[311793878,1705397235081,-8838.12376591,0.00018797,2]
[311793879,1705397235684,2032.26842412,0.00018797,2]
[311793880,1705397235721,213.18676181,0.00018797,2]
[311793882,1705397236387,156.78271178,0.00018796,2]
[311793883,1705397236760,154.98450155,0.00018797,2]
[311793884,1705397237054,275.47059983,0.00018797,2]
[311793885,1705397237082,47.29237867,0.00018797,2]
[311793886,1705397237119,11952.70762133,0.00018797,2]
[311793887,1705397237145,8983.96086089,0.00018797,2]
[311793888,1705397237172,8983.96086089,0.00018797,2]
[311793889,1705397237198,1991.62305564,0.00018797,2]
[311793890,1705397237375,-12000.0,0.00018797,2]
[311793891,1705397237495,-12000.0,0.00018797,2]